fUSD/lending_fUSD_20240704
["ID","MTS","AMOUNT","RATE_DAILY","PERIOD"]
[331143673,1720102244689,-152.65894876,0.00022403,2]
[331143674,1720102244698,-579.56308272,0.0002241,2]
[331143675,1720102244707,-156.99984362,0.00022415,2]
[331143676,1720102244716,-22581.9965147,0.0002242,3]
[331143677,1720102244726,-4105.42122605,0.00022421,2]
[331143678,1720102244735,-32480.80219731,0.0002243,2]
[331143679,1720102244744,-150.0,0.00022438,2]
[331143680,1720102244753,-153.33799645,0.00022461,2]
[331143681,1720102244763,-218.46512381,0.00022484,2]
[331143682,1720102244778,-154.52911029,0.00022494,2]
[331143683,1720102244787,-150.0,0.00022495,2]
[331143684,1720102244796,-185.49550164,0.00022507,2]
[331143685,1720102244805,-737.67,0.0002251,2]
[331143686,1720102244817,-2854.55231,0.0002251,2]
[331143687,1720102244825,-152.32268169,0.00022513,2]
[331143688,1720102244834,-11290.9982574,0.00022519,3]
[331143689,1720102244844,-455.11138701,0.0002252,2]
[331143690,1720102244853,-151.12965899,0.00022522,2]
[331143691,1720102244862,-45163.9930294,0.00022529,3]
[331143692,1720102244871,-166.32784104,0.0002253,2]
[331143693,1720102244880,-78232.5948,0.00022539,2]
[331143694,1720102244890,-299.4225,0.00022539,2]
[331143695,1720102244899,-7500.0,0.00022539,2]
[331143696,1720102244908,-1467.64803512,0.00022539,2]
[331143697,1720102244917,-153.51733318,0.0002254,2]
[331143698,1720102244926,-11290.9982574,0.00022542,3]
[331143699,1720102244936,-153.51733318,0.00022555,2]
[331143700,1720102244945,-150.0,0.00022564,2]
[331143701,1720102244954,-151.12965899,0.00022565,2]
[331143702,1720102244964,-169.8,0.00022589,2]
[331143703,1720102244973,-218.46512381,0.00022593,2]
[331143704,1720102244982,-11290.9982574,0.00022608,3]
[331143705,1720102244991,-11290.9982574,0.00022609,3]
[331143706,1720102245000,-579.56308272,0.00022618,2]
[331143707,1720102245018,-11290.9982574,0.00022619,3]
[331143708,1720102245029,-11290.9982574,0.00022619,3]
[331143710,1720102245038,-198.0,0.0002262,5]
[331143712,1720102245047,-467.88785839,0.00022627,2]
[331143714,1720102245057,-153.51733318,0.00022627,2]
[331143716,1720102245066,-500.0,0.00022629,2]
[331143718,1720102245075,-22581.9965147,0.00022629,3]
[331143720,1720102245084,-184.29208948,0.00022629,2]
[331143722,1720102245093,-7635.61118668,0.00022629,2]
[331143724,1720102245103,-175.11260106,0.0002263,2]
[331143726,1720102245112,-220.31,0.0002263,3]
[331143728,1720102245121,-11290.9982574,0.00022637,3]
[331143730,1720102245130,-152.65894876,0.00022637,2]
[331143732,1720102245139,-13773.3938,0.00022639,2]
[331143734,1720102245149,-448.388,0.00022639,2]
[331143736,1720102245159,-321.44547856,0.00022639,2]
[331143738,1720102245169,-25000.0,0.00022639,2]
[331143740,1720102245179,-1000.0,0.00022639,2]
[331143742,1720102245188,-216.0,0.00022639,2]
[331143744,1720102245199,-176.99865148,0.00022639,2]
[331143746,1720102245209,-178.72562817,0.00022639,2]
[331143749,1720102245218,-8013.89676395,0.00022639,2]
[331143750,1720102245228,-542.22965354,0.00022639,2]
[331143752,1720102245237,-199.30824592,0.00022639,2]
[331143755,1720102245248,-467.88785839,0.00022643,2]
[331143756,1720102245257,-151.0,0.00022652,2]
[331143758,1720102245266,-7635.61118668,0.00022653,2]
[331143760,1720102245276,-579.56308272,0.00022653,2]
[331143762,1720102245285,-185.49550164,0.00022653,2]
[331143763,1720102245294,-152.73217891,0.00022665,2]
[331143764,1720102245303,-152.65894876,0.00022665,2]
[331143765,1720102245312,-7635.61118668,0.00022676,2]
[331143766,1720102245321,-500.0,0.00022681,2]
[331143767,1720102245331,-200.0,0.00022681,2]
[331143768,1720102245340,-11290.9982574,0.0002269,3]
[331143769,1720102245350,-153.33799645,0.00022692,2]
[331143770,1720102245359,-152.73217891,0.00022693,2]
[331143771,1720102245368,-175.14836596,0.00022693,2]
[331143772,1720102245378,-7635.61118668,0.000227,2]
[331143773,1720102245387,-156.90647149,0.00022704,2]
[331143774,1720102245398,-22581.9965147,0.00022709,3]
[331143775,1720102245407,-5172.0,0.00022722,2]
[331143776,1720102245417,-1199.0,0.00022722,2]
[331143777,1720102245427,-2507.4,0.00022722,2]
[331143778,1720102245436,-291.0,0.00022722,2]
[331143779,1720102245445,-1662.0,0.00022722,2]
[331143780,1720102245454,-38235.0,0.00022722,2]
[331143782,1720102245464,-1069.0,0.00022722,2]
[331143784,1720102245472,-7635.61118668,0.00022724,2]
[331143785,1720102245481,-1000.0,0.00022738,2]
[331143786,1720102245490,-1000.0,0.00022738,2]
[331143787,1720102245499,-1878.06,0.00022738,2]
[331143788,1720102245508,-150.0,0.00022738,10]
[331143790,1720102245518,-150.0,0.00022738,10]
[331143793,1720102245531,-150.0,0.00022738,10]
[331143794,1720102245540,-200.46322051,0.00022738,10]
[331143795,1720102245550,-1441144.43207012,0.00022739,7]
[331143796,1720102245559,-150.0,0.00022739,10]
[331143797,1720102245569,-500.0,0.00022739,4]
[331143798,1720102245578,-500.0,0.00022739,4]
[331143799,1720102245588,-500.0,0.00022739,4]
[331143800,1720102245598,-500.0,0.00022739,4]
[331143801,1720102245615,-500.0,0.00022739,4]
[331143802,1720102245625,-500.0,0.00022739,4]
[331143803,1720102245634,-500.0,0.00022739,4]
[331143804,1720102245643,-500.0,0.00022739,4]
[331143805,1720102245653,-500.0,0.00022739,4]
[331143806,1720102245665,-505.3020071,0.00022739,4]
[331143807,1720102245675,-500.0,0.00022739,4]
[331143808,1720102245685,-500.0,0.00022739,4]
[331143809,1720102245696,-500.0,0.00022739,4]
[331143810,1720102245705,-500.0,0.00022739,4]
[331143811,1720102245715,-500.0,0.00022739,4]
[331143812,1720102245725,-500.0,0.00022739,4]
[331143813,1720102245735,-500.0,0.00022739,4]
[331143814,1720102245745,-500.0,0.00022739,4]
[331143815,1720102245754,-500.0,0.00022739,4]
[331143816,1720102245765,-500.0,0.00022739,4]
[331143817,1720102245775,-436.49982661,0.00022739,4]
[331143818,1720102245786,-500.0,0.00022739,4]
[331143819,1720102245795,-500.0,0.00022739,4]
[331143820,1720102245806,-500.0,0.00022739,4]
[331143821,1720102245816,-567.11647358,0.00022739,4]
[331143822,1720102245826,-500.0,0.00022739,4]
[331143823,1720102245836,-500.0,0.00022739,4]
[331143824,1720102245846,-500.0,0.00022739,4]
[331143825,1720102245857,-500.0,0.00022739,4]
[331143826,1720102245867,-500.0,0.00022739,4]
[331143827,1720102245876,-500.0,0.00022739,4]
[331143828,1720102245888,-500.0,0.00022739,4]
[331143829,1720102245897,-419.89016723,0.00022739,4]
[331143830,1720102245907,-500.0,0.00022739,4]
[331143831,1720102245916,-530.38727403,0.00022739,4]
[331143832,1720102245926,-500.0,0.00022739,4]
[331143833,1720102245935,-501.20502879,0.00022739,4]
[331143834,1720102245945,-500.0,0.00022739,4]
[331143835,1720102245954,-501.61261882,0.00022739,4]
[331143836,1720102245963,-500.0,0.00022739,4]
[331143837,1720102245973,-500.0,0.00022739,4]
[331143838,1720102245982,-500.0,0.00022739,4]
[331143839,1720102245991,-500.0,0.00022739,4]
[331143840,1720102246001,-500.0,0.00022739,4]
[331143841,1720102246011,-500.0,0.00022739,4]
[331143842,1720102246021,-500.0,0.00022739,4]
[331143843,1720102246030,-500.0,0.00022739,4]
[331143844,1720102246039,-500.0,0.00022739,4]
[331143845,1720102246048,-500.0,0.00022739,4]
[331143846,1720102246058,-500.0,0.00022739,4]
[331143847,1720102246068,-500.0,0.00022739,4]
[331143848,1720102246077,-500.0,0.00022739,4]
[331143849,1720102246087,-500.0,0.00022739,4]
[331143850,1720102246096,-500.0,0.00022739,4]
[331143852,1720102246105,-500.0,0.00022739,4]
[331143854,1720102246114,-500.0,0.00022739,4]
[331143855,1720102246124,-500.0,0.00022739,4]
[331143857,1720102246133,-500.0,0.00022739,4]
[331143858,1720102246143,-500.0,0.00022739,4]
[331143859,1720102246152,-500.0,0.00022739,4]
[331143860,1720102246161,-500.0,0.00022739,4]
[331143861,1720102246170,-500.0,0.00022739,4]
[331143862,1720102246181,-500.0,0.00022739,4]
[331143863,1720102246190,-500.0,0.00022739,4]
[331143864,1720102246199,-500.0,0.00022739,4]
[331143865,1720102246208,-500.0,0.00022739,4]
[331143866,1720102246218,-500.0,0.00022739,4]
[331143867,1720102246228,-500.0,0.00022739,4]
[331143868,1720102246240,-500.0,0.00022739,4]
[331143869,1720102246250,-500.0,0.00022739,4]
[331143870,1720102246260,-500.0,0.00022739,4]
[331143871,1720102246269,-500.0,0.00022739,4]
[331143872,1720102246278,-500.0,0.00022739,4]
[331143873,1720102246287,-259.78561629,0.00022739,4]
[331143874,1720102246297,-500.0,0.00022739,4]
[331143875,1720102246306,-500.0,0.00022739,4]
[331143876,1720102246315,-500.0,0.00022739,4]
[331143877,1720102246324,-500.0,0.00022739,4]
[331143878,1720102246334,-500.0,0.00022739,4]
[331143879,1720102246344,-500.0,0.00022739,4]
[331143880,1720102246353,-500.0,0.00022739,4]
[331143881,1720102246362,-500.0,0.00022739,4]
[331143882,1720102246371,-500.0,0.00022739,4]
[331143883,1720102246380,-592.21610749,0.00022739,4]
[331143884,1720102246389,-396.39729837,0.00022739,4]
[331143885,1720102246399,-500.0,0.00022739,4]
[331143886,1720102246407,-500.0,0.00022739,4]
[331143887,1720102246417,-500.76077075,0.00022739,4]
[331143888,1720102246426,-500.0,0.00022739,4]
[331143889,1720102246436,-500.0,0.00022739,4]
[331143890,1720102246445,-501.16878654,0.00022739,4]
[331143891,1720102246455,-500.0,0.00022739,4]
[331143892,1720102246464,-500.0,0.00022739,4]
[331143893,1720102246474,-500.0,0.00022739,4]
[331143894,1720102246483,-181.45577356,0.00022739,4]
[331143895,1720102246493,-500.0,0.00022739,4]
[331143896,1720102246502,-500.0,0.00022739,4]
[331143897,1720102246513,-500.0,0.00022739,4]
[331143898,1720102246523,-234.00825285,0.00022739,4]
[331143899,1720102246532,-513.49150323,0.00022739,4]
[331143900,1720102246543,-501.46782858,0.00022739,4]
[331143901,1720102246553,-501.10110973,0.00022739,4]
[331143902,1720102246562,-311.65352498,0.00022739,4]
[331143903,1720102246571,-500.0,0.00022739,4]
[331143904,1720102246581,-246.97567519,0.00022739,4]
[331143905,1720102246591,-500.0,0.00022739,4]
[331143906,1720102246601,-500.0,0.00022739,4]
[331143907,1720102246610,-501.18163621,0.00022739,4]
[331143908,1720102246619,-500.0,0.00022739,4]
[331143909,1720102246629,-500.0,0.00022739,4]
[331143910,1720102246638,-497.64165952,0.00022739,4]
[331143911,1720102246647,-500.0,0.00022739,4]
[331143912,1720102246657,-504.67078891,0.00022739,4]
[331143913,1720102246666,-500.0,0.00022739,4]
[331143914,1720102246675,-500.0,0.00022739,4]
[331143915,1720102246685,-501.20562195,0.00022739,4]
[331143917,1720102246695,-500.0,0.00022739,4]
[331143919,1720102246704,-500.0,0.00022739,4]
[331143921,1720102246714,-500.0,0.00022739,4]
[331143922,1720102246724,-497.70209685,0.00022739,4]
[331143923,1720102246734,-588.5066408,0.00022739,4]
[331143924,1720102246743,-500.0,0.00022739,4]
[331143925,1720102246753,-500.0,0.00022739,4]
[331143926,1720102246762,-501.22998761,0.00022739,4]
[331143927,1720102246776,-500.0,0.00022739,4]
[331143928,1720102246786,-500.0,0.00022739,4]
[331143929,1720102246795,-580.28828934,0.00022739,4]
[331143930,1720102246805,-461.06524667,0.00022739,4]
[331143931,1720102246816,-500.0,0.00022739,4]
[331143932,1720102246825,-500.0,0.00022739,4]
[331143933,1720102246834,-497.0064044,0.00022739,4]
[331143934,1720102246844,-200.0,0.00022739,4]
[331143935,1720102246855,-200.0,0.00022739,4]
[331143936,1720102246865,-200.0,0.00022739,4]
[331143937,1720102246874,-500.0,0.00022739,4]
[331143938,1720102246884,-500.0,0.00022739,4]
[331143939,1720102246894,-498.0,0.00022739,4]
[331143940,1720102246903,-500.0,0.00022739,4]
[331143941,1720102246913,-500.0,0.00022739,4]
[331143942,1720102246923,-500.48731682,0.00022739,4]
[331143943,1720102246939,-500.15397519,0.00022739,4]
[331143944,1720102246951,-500.27762852,0.00022739,4]
[331143945,1720102246961,-500.0,0.00022739,4]
[331143946,1720102246971,-500.0,0.00022739,4]
[331143947,1720102246981,-632.12617018,0.00022739,4]
[331143948,1720102246990,-500.0,0.00022739,4]
[331143949,1720102247000,-500.0,0.00022739,4]
[331143950,1720102247010,-532.47615349,0.00022739,4]
[331143951,1720102247020,-500.0,0.00022739,4]
[331143952,1720102247029,-500.0,0.00022739,4]
[331143953,1720102247040,-500.0,0.00022739,4]
[331143954,1720102247050,-500.0,0.00022739,4]
[331143956,1720102247059,-500.0,0.00022739,4]
[331143958,1720102247070,-500.0,0.00022739,4]
[331143960,1720102247080,-500.0,0.00022739,4]
[331143962,1720102247090,-501.09315943,0.00022739,4]
[331143964,1720102247100,-500.0,0.00022739,4]
[331143966,1720102247110,-500.92808602,0.00022739,4]
[331143969,1720102247120,-500.0,0.00022739,4]
[331143972,1720102247129,-500.0,0.00022739,4]
[331143974,1720102247139,-501.48027164,0.00022739,4]
[331143976,1720102247149,-500.0,0.00022739,4]
[331143977,1720102247158,-500.0,0.00022739,4]
[331143978,1720102247169,-501.58674327,0.00022739,4]
[331143979,1720102247179,-500.32563131,0.00022739,4]
[331143980,1720102247189,-500.0,0.00022739,4]
[331143981,1720102247198,-502.2732989,0.00022739,4]
[331143982,1720102247209,-500.0,0.00022739,4]
[331143983,1720102247219,-500.0,0.00022739,4]
[331143984,1720102247230,-502.59695804,0.00022739,4]
[331143985,1720102247241,-540.81441657,0.00022739,4]
[331143986,1720102247251,-500.0,0.00022739,4]
[331143987,1720102247261,-501.49354324,0.00022739,4]
[331143988,1720102247272,-394.70669332,0.00022739,4]
[331143989,1720102247282,-500.82624723,0.00022739,4]
[331143990,1720102247292,-500.0,0.00022739,4]
[331143991,1720102247302,-500.0,0.00022739,4]
[331143992,1720102247312,-279.78360337,0.00022739,4]
[331143993,1720102247323,-500.0,0.00022739,4]
[331143994,1720102247333,-298.6873288,0.00022739,4]
[331143995,1720102247344,-537.80717382,0.00022739,4]
[331143996,1720102247354,-500.0,0.00022739,4]
[331143997,1720102247364,-500.0,0.00022739,4]
[331143998,1720102247375,-501.61577001,0.00022739,4]
[331143999,1720102247386,-575.3235032,0.00022739,4]
[331144000,1720102247396,-500.0,0.00022739,4]
[331144001,1720102247406,-500.0,0.00022739,4]
[331144002,1720102247417,-502.78045673,0.00022739,4]
[331144003,1720102247427,-500.0,0.00022739,4]
[331144004,1720102247438,-500.0,0.00022739,4]
[331144005,1720102247448,-502.480649,0.00022739,4]
[331144006,1720102247458,-500.0,0.00022739,4]
[331144007,1720102247467,-500.0,0.00022739,4]
[331144008,1720102247478,-502.01911545,0.00022739,4]
[331144009,1720102247488,-500.0,0.00022739,4]
[331144010,1720102247498,-504.4619281,0.00022739,4]
[331144011,1720102247509,-500.0,0.00022739,4]
[331144012,1720102247520,-164.1243982,0.00022739,4]
[331144013,1720102247530,-500.94949708,0.00022739,4]
[331144014,1720102247540,-500.0,0.00022739,4]
[331144015,1720102247550,-502.00705673,0.00022739,4]
[331144016,1720102247561,-500.0,0.00022739,4]
[331144017,1720102247572,-504.46766974,0.00022739,4]
[331144018,1720102247582,-500.0,0.00022739,4]
[331144019,1720102247592,-500.89006144,0.00022739,4]
[331144020,1720102247606,-500.0,0.00022739,4]
[331144021,1720102247616,-500.0,0.00022739,4]
[331144022,1720102247626,-500.0,0.00022739,4]
[331144023,1720102247638,-502.04012797,0.00022739,4]
[331144024,1720102247648,-500.0,0.00022739,4]
[331144025,1720102247659,-500.0,0.00022739,4]
[331144026,1720102247669,-500.0,0.00022739,4]
[331144027,1720102247681,-500.0,0.00022739,4]
[331144028,1720102247691,-500.0,0.00022739,4]
[331144029,1720102247702,-500.0,0.00022739,4]
[331144030,1720102247712,-500.0,0.00022739,4]
[331144031,1720102247722,-500.0,0.00022739,4]
[331144032,1720102247733,-498.29843869,0.00022739,4]
[331144033,1720102247743,-501.5132158,0.00022739,4]
[331144034,1720102247753,-500.0,0.00022739,4]
[331144035,1720102247764,-501.45099465,0.00022739,4]
[331144036,1720102247778,-593.36873102,0.00022739,4]
[331144037,1720102247789,-503.02163278,0.00022739,4]
[331144038,1720102247801,-500.0,0.00022739,4]
[331144039,1720102247812,-500.0,0.00022739,4]
[331144040,1720102247822,-503.67348719,0.00022739,4]
[331144041,1720102247833,-501.86555905,0.00022739,4]
[331144042,1720102247844,-500.0,0.00022739,4]
[331144043,1720102247859,-500.0,0.00022739,4]
[331144044,1720102247870,-160.46719793,0.00022739,4]
[331144045,1720102247881,-500.0,0.00022739,4]
[331144046,1720102247892,-500.3491734,0.00022739,4]
[331144047,1720102247903,-500.0,0.00022739,4]
[331144048,1720102247914,-500.9683981,0.00022739,4]
[331144049,1720102247926,-623.0509307,0.00022739,4]
[331144050,1720102247937,-500.0,0.00022739,4]
[331144051,1720102247948,-500.0,0.00022739,4]
[331144052,1720102247959,-501.20547859,0.00022739,4]
[331144053,1720102247971,-185.26864317,0.00022739,4]
[331144054,1720102247983,-500.0,0.00022739,4]
[331144055,1720102247994,-501.99365228,0.00022739,4]
[331144056,1720102248005,-500.0,0.00022739,4]
[331144057,1720102248017,-503.36578309,0.00022739,4]
[331144058,1720102248029,-500.0,0.00022739,4]
[331144059,1720102248040,-501.30489523,0.00022739,4]
[331144060,1720102248051,-500.0,0.00022739,4]
[331144061,1720102248063,-502.14317234,0.00022739,4]
[331144062,1720102248073,-500.6552261,0.00022739,4]
[331144063,1720102248084,-500.0,0.00022739,4]
[331144064,1720102248095,-501.57613429,0.00022739,4]
[331144065,1720102248105,-600.39,0.00022739,4]
[331144066,1720102248116,-500.0,0.00022739,4]
[331144067,1720102248127,-500.0,0.00022739,4]
[331144068,1720102248140,-600.39,0.00022739,4]
[331144069,1720102248151,-500.0,0.00022739,4]
[331144070,1720102248164,-600.39,0.00022739,4]
[331144071,1720102248174,-600.39,0.00022739,4]
[331144072,1720102248185,-600.39,0.00022739,4]
[331144073,1720102248196,-600.39,0.00022739,4]
[331144074,1720102248207,-507.15636106,0.00022739,4]
[331144075,1720102248217,-500.0,0.00022739,4]
[331144076,1720102248228,-500.0,0.00022739,4]
[331144077,1720102248238,-500.0,0.00022739,4]
[331144078,1720102248249,-500.0,0.00022739,4]
[331144079,1720102248259,-500.0,0.00022739,4]
[331144080,1720102248273,-500.0,0.00022739,4]
[331144081,1720102248284,-500.0,0.00022739,4]
[331144082,1720102248294,-500.0,0.00022739,4]
[331144083,1720102248305,-177.0642337,0.00022739,4]
[331144084,1720102248315,-4758.74,0.00022739,4]
[331144085,1720102248326,-4758.74,0.00022739,4]
[331144086,1720102248336,-4758.74,0.00022739,4]
[331144087,1720102248346,-4767.36,0.00022739,4]
[331144088,1720102248356,-4758.74,0.00022739,4]
[331144089,1720102248367,-4767.36,0.00022739,4]
[331144090,1720102248377,-4758.74,0.00022739,4]
[331144091,1720102248387,-4767.36,0.00022739,4]
[331144092,1720102248398,-4758.74,0.00022739,4]
[331144093,1720102248409,-500.0,0.00022739,4]
[331144094,1720102248419,-500.0,0.00022739,4]
[331144095,1720102248430,-4767.36,0.00022739,4]
[331144096,1720102248441,-4758.74,0.00022739,4]
[331144097,1720102248451,-500.0,0.00022739,4]
[331144098,1720102248462,-1000.0,0.00022739,2]
[331144099,1720102248473,-4767.36,0.00022739,4]
[331144100,1720102248484,-4758.74,0.00022739,4]
[331144101,1720102248495,-500.0,0.00022739,4]
[331144102,1720102248505,-500.0,0.00022739,4]
[331144103,1720102248517,-4767.36,0.00022739,4]
[331144104,1720102248528,-4758.74,0.00022739,4]
[331144105,1720102248538,-500.0,0.00022739,4]
[331144106,1720102248548,-500.0,0.00022739,4]
[331144107,1720102248558,-500.0,0.00022739,4]
[331144108,1720102248569,-4767.36,0.00022739,4]
[331144109,1720102248579,-4758.74,0.00022739,4]
[331144110,1720102248591,-4758.74,0.00022739,4]
[331144111,1720102248601,-4758.74,0.00022739,4]
[331144112,1720102248612,-4758.74,0.00022739,4]
[331144113,1720102248623,-4758.74,0.00022739,4]
[331144114,1720102248633,-500.0,0.00022739,4]
[331144115,1720102248643,-500.0,0.00022739,4]
[331144116,1720102248654,-500.0,0.00022739,4]
[331144117,1720102248664,-500.0,0.00022739,4]
[331144118,1720102248674,-4758.74,0.00022739,4]
[331144119,1720102248686,-500.0,0.00022739,4]
[331144120,1720102248696,-500.0,0.00022739,4]
[331144121,1720102248707,-4758.74,0.00022739,4]
[331144122,1720102248717,-500.0,0.00022739,4]
[331144123,1720102248727,-559.23,0.00022739,4]
[331144124,1720102248738,-4758.82949227,0.00022739,4]
[331144125,1720102248748,-500.0,0.00022739,4]
[331144126,1720102248759,-500.0,0.00022739,4]
[331144127,1720102248769,-500.0,0.00022739,4]
[331144128,1720102248782,-500.0,0.00022739,4]
[331144129,1720102248792,-500.0,0.00022739,4]
[331144130,1720102248802,-500.0,0.00022739,4]
[331144131,1720102248813,-500.0,0.00022739,4]
[331144132,1720102248824,-500.0,0.00022739,4]
[331144133,1720102248834,-500.0,0.00022739,4]
[331144134,1720102248844,-500.0,0.00022739,4]
[331144135,1720102248858,-500.0,0.00022739,4]
[331144136,1720102248869,-202.15034637,0.00022739,4]
[331144137,1720102248880,-500.0,0.00022739,4]
[331144138,1720102248890,-500.0,0.00022739,4]
[331144139,1720102248901,-500.0,0.00022739,4]
[331144140,1720102248911,-500.0,0.00022739,4]
[331144141,1720102248921,-178.69564803,0.00022739,4]
[331144142,1720102248932,-151.0,0.00022739,7]
[331144143,1720102248942,-500.8048917,0.00022739,4]
[331144144,1720102248952,-151.0,0.00022739,7]
[331144145,1720102248963,-500.0,0.00022739,4]
[331144146,1720102248973,-500.0,0.00022739,4]
[331144147,1720102248983,-500.0,0.00022739,4]
[331144148,1720102248994,-170.3219681,0.00022739,4]
[331144149,1720102249004,-500.0,0.00022739,4]
[331144150,1720102249014,-500.0,0.00022739,4]
[331144151,1720102249024,-500.0,0.00022739,4]
[331144152,1720102249034,-500.0,0.00022739,4]
[331144153,1720102249046,-151.0,0.00022739,7]
[331144154,1720102249057,-524.85568369,0.00022739,4]
[331144155,1720102249067,-254.32351,0.00022739,7]
[331144156,1720102249082,-151.0,0.00022739,7]
[331144157,1720102249092,-500.0,0.00022739,4]
[331144158,1720102249104,-151.0,0.00022739,7]
[331144159,1720102249115,-151.0,0.00022739,7]
[331144160,1720102249126,-500.0,0.00022739,4]
[331144161,1720102249136,-151.0,0.00022739,7]
[331144162,1720102249146,-151.522282,0.00022739,7]
[331144163,1720102249156,-500.0,0.00022739,4]
[331144164,1720102249166,-500.0,0.00022739,4]
[331144165,1720102249176,-500.0,0.00022739,4]
[331144166,1720102249187,-500.0,0.00022739,2]
[331144167,1720102249196,-182.991127,0.00022739,7]
[331144168,1720102249207,-182.991127,0.00022739,7]
[331144169,1720102249218,-367.8,0.00022739,4]
[331144170,1720102249228,-151.0,0.00022739,7]
[331144171,1720102249239,-151.0,0.00022739,7]
[331144172,1720102249249,-500.0,0.00022739,4]
[331144173,1720102249260,-500.0,0.00022739,4]
[331144174,1720102249270,-500.0,0.00022739,4]
[331144175,1720102249280,-500.0,0.00022739,4]
[331144176,1720102249291,-500.0,0.00022739,4]
[331144177,1720102249302,-500.0,0.00022739,4]
[331144178,1720102249312,-437.38,0.00022739,4]
[331144179,1720102249322,-500.0,0.00022739,4]
[331144180,1720102249332,-500.0,0.00022739,4]
[331144181,1720102249342,-500.0,0.00022739,4]
[331144182,1720102249352,-500.0,0.00022739,4]
[331144183,1720102249362,-500.0,0.00022739,4]
[331144184,1720102249372,-500.0,0.00022739,4]
[331144185,1720102249382,-500.0,0.00022739,4]
[331144186,1720102249393,-500.0,0.00022739,4]
[331144187,1720102249403,-500.0,0.00022739,4]
[331144188,1720102249414,-314.6,0.00022739,4]
[331144189,1720102249424,-10114.0,0.00022739,4]
[331144190,1720102249434,-151.423814,0.00022739,7]
[331144191,1720102249444,-151.0,0.00022739,7]
[331144192,1720102249454,-152.541772,0.00022739,7]
[331144193,1720102249464,-500.0,0.00022739,4]
[331144194,1720102249474,-500.0,0.00022739,4]
[331144195,1720102249484,-500.0,0.00022739,4]
[331144196,1720102249495,-500.0,0.00022739,4]
[331144197,1720102249505,-500.0,0.00022739,4]
[331144198,1720102249517,-151.0,0.00022739,7]
[331144199,1720102249528,-500.0,0.00022739,4]
[331144200,1720102249539,-151.0,0.00022739,7]
[331144201,1720102249788,-500.0,0.00022739,4]
[331144202,1720102249808,-626.36,0.00022739,4]
[331144203,1720102249818,-500.0,0.00022739,4]
[331144204,1720102249828,-500.0,0.00022739,4]
[331144205,1720102249838,-500.0,0.00022739,4]
[331144206,1720102249848,-500.0,0.00022739,4]
[331144207,1720102249859,-500.0,0.00022739,4]
[331144208,1720102249869,-500.0,0.00022739,4]
[331144209,1720102249878,-500.0,0.00022739,4]
[331144210,1720102249888,-500.0,0.00022739,4]
[331144211,1720102249897,-500.0,0.00022739,4]
[331144212,1720102249907,-151.0,0.00022739,7]
[331144213,1720102249918,-500.0,0.00022739,4]
[331144214,1720102249928,-500.0,0.00022739,4]
[331144215,1720102249939,-151.0,0.00022739,7]
[331144216,1720102249949,-500.0,0.00022739,4]
[331144217,1720102249959,-500.0,0.00022739,4]
[331144218,1720102249969,-500.0,0.00022739,4]
[331144219,1720102249979,-295.37,0.00022739,4]
[331144220,1720102249989,-500.0,0.00022739,2]
[331144221,1720102249999,-553.13952441,0.00022739,2]
[331144222,1720102250008,-500.0,0.00022739,4]